Cogmind - Beta 11 X4 @@@ ROGUE MODE // 2021.05.11 @ 17:27:38 Player: Captain Croissandwich Result: Destroyed by B-99 Colossus with Multirail Performance ------------- Evolutions (9) 4500 Regions Visited (26) 5200 Robots Destroyed (343) 1715 Value Destroyed (13775) 13775 Prototype IDs (57) 1140 Alien Tech Used (0) 0 Bonus (2870) 2870 TOTAL SCORE: 29200 Bonus ------- High Alert Combat Kills 713 Follower Combat Kills 1489 Entered Garrisons 400 Used RIF Installer 1000 Aligned with FarCom 300 Met Data Miner 300 Friendly Fire -1332 Cogmind --------- Core Integrity 0/1600 Matter 213/300 Energy 100/100 System Corruption 39% Temperature Cool (0) Movement Core (50) Location -1/Command Parts ------- > --- POWER (1) -------- (None) > --- PROPULSION (6) --- (None) > --- UTILITY (14) ----- (None) > --- WEAPON (4) ------- (None) > --- INVENTORY (5) ---- Flexi-carbon Leg Gamma Rifle Peak State ------------ > --- POWER ------------ Neutrino Core > --- PROPULSION ------- Biometal Heavy Treads Biometal Heavy Treads Advanced Heavy Siege Treads > --- UTILITY ---------- Advanced Heat Sink Advanced Coolant Injector High-capacity Storage Unit Matter Compressor Enhanced Optical Array Experimental Transmission Jammer Experimental Core Shielding Experimental Core Shielding Heavy Armor Plating Improved Force Field Relay Coupler [Grunt] > --- WEAPON ----------- XL Autogun Array > --- INVENTORY -------- Micro Fission Core Improved Heavy Treads Improved Heavy Treads Armored Heavy Treads Flexi-carbon Leg Gamma Rifle Compact HERF Cannon Nova Cannon Railgun Railgun Gamma Bomb Array Advanced Remote Datajack Power Sword [Rating: 173] Favorites ----------- Power Improved Deuterium Engine Engine Improved Deuterium Engine Power Core Micro Fission Core Reactor Antimatter Reactor Propulsion Advanced Treads Treads Advanced Treads Leg Flexi-carbon Leg Wheel Wheel Utility High-capacity Storage Unit Device Advanced Heat Sink Storage High-capacity Storage Unit Processor Advanced Visual Processing Unit Hackware Relay Coupler [Sentry] Protection Improved Light Armor Plating Weapon Flak Gun Energy Gun EM Shotgun Energy Cannon Nova Cannon Ballistic Gun Flak Gun Ballistic Cannon Hardcell Cannon Launcher Precision Grenade Launcher Special Weapon Improved Remote Datajack Slashing Weapon Great Axe Build | -11 -10 -10 -10 -9 -8 -8 -8 -7 -7 -7 -7 -6 -6 -6 -6 -6 -6 -6 -5 -4 -4 -4 -3 -2 -1 -1 ------- Run | Scr Mat Min Exi Min Mat Gar Mat Fac Low Low Dat Pro Fac Gar Fac Ext Cet Arc Fac Fac Upp Upp Res Res Acc Com Slots Evolved 18 | . . . . . 4 . . 2 . . . . 2 . . . . . 2 2 . . 2 2 2 . Power . | . . . . . . . . . . . . . . . . . . . . . . . . . . . Propulsion 4 | . . . . . 1 . . . . . . . . . . . . . 1 . . . . . 2 . Utility 12 | . . . . . 2 . . 1 . . . . 2 . . . . . 1 2 . . 2 2 . . Weapon 2 | . . . . . 1 . . 1 . . . . . . . . . . . . . . . . . . Parts Attached 374 | 6 10 7 2 3 32 15 7 53 5 3 4 4 6 25 25 21 12 5 8 16 22 2 24 30 15 12 Power 19 | 1 3 . . . 1 1 . 2 . . . . 1 1 . 1 1 1 1 . 1 . 1 2 1 . Engine 9 | 1 3 . . . 1 1 . 1 . . . . 1 1 . . . . . . . . . . . . Core 8 | . . . . . . . . 1 . . . . . . . 1 1 1 1 . 1 . . 1 1 . Reactor 2 | . . . . . . . . . . . . . . . . . . . . . . . 1 1 . . Propulsion 54 | 2 . 2 1 . 8 2 2 9 . . . . . 2 3 5 1 . 1 2 2 . 4 2 4 2 Treads 40 | . . . . . 3 1 2 7 . . . . . 2 3 5 1 . 1 2 2 . 3 2 4 2 Leg 1 | . . . . . . . . . . . . . . . . . . . . . . . 1 . . . Wheel 13 | 2 . 2 1 . 5 1 . 2 . . . . . . . . . . . . . . . . . . Hover . | . . . . . . . . . . . . . . . . . . . . . . . . . . . Flight . | . . . . . . . . . . . . . . . . . . . . . . . . . . . Utility 84 | 1 2 . . . 6 3 2 14 2 . . . . 6 3 4 1 1 3 6 7 1 7 8 2 5 Device 36 | . 1 . . . 3 1 . 8 1 . . . . 2 1 . . 1 . 2 4 1 4 4 1 2 Storage 3 | 1 1 . . . . . . . . . . . . . . . . . . . . . . . 1 . Processor 8 | . . . . . 1 . . 2 . . . . . . 1 . . . . . 1 . . . . 3 Hackware 8 | . . . . . . 1 . . 1 . . . . 1 1 1 . . . 1 . . 1 1 . . Protection 29 | . . . . . 2 1 2 4 . . . . . 3 . 3 1 . 3 3 2 . 2 3 . . Artifact . | . . . . . . . . . . . . . . . . . . . . . . . . . . . Weapon 217 | 2 5 5 1 3 17 9 3 28 3 3 4 4 5 16 19 11 9 3 3 8 12 1 12 18 8 5 Energy Gun 18 | . . . . . 8 4 1 2 . . . . . . . . . . . . 1 . 1 1 . . Energy Cannon 15 | . . . . . 1 . . . . . . . . . 2 2 . . . . . . 3 4 1 2 Ballistic Gun 120 | 2 3 3 . 2 4 3 2 21 2 2 4 2 2 11 9 5 6 2 3 4 9 . 2 11 6 . Ballistic Cannon 2 | . . . . . . . . . . . . . . . . . . . . 1 . . 1 . . . Launcher 31 | . 2 2 1 1 4 2 . 5 1 . . . 1 3 1 1 3 . . . 1 1 1 . . 1 Special Weapon 14 | . . . . . . . . . . . . . . 1 2 3 . 1 . 2 1 . 1 2 . 1 Impact Weapon . | . . . . . . . . . . . . . . . . . . . . . . . . . . . Slashing Weapon 17 | . . . . . . . . . . 1 . 2 2 1 5 . . . . 1 . . 3 . 1 1 Piercing Weapon . | . . . . . . . . . . . . . . . . . . . . . . . . . . . Special Melee Weapon . | . . . . . . . . . . . . . . . . . . . . . . . . . . . Unidentified Prototypes 11 | . . . . . 2 . 1 2 . . . . . . . . 3 . . . . 1 . 2 . . Corrupted Parts 2 | . . . . . . . . . . . . . . . . . . . . . . . 1 1 . . System Corruption 19 | . . . . . . . . . . . . . . . . . . . . . . . 10 9 . . Parts Lost 86 | . . 1 . . 1 2 4 12 . . . . 1 3 1 1 . . . 3 15 . 4 11 14 13 Power 6 | . . . . . . 1 . 2 . . . . . . . . . . . . . . . 1 1 1 Propulsion 15 | . . . . . . . . 4 . . . . . 1 . 1 . . . 1 3 . . . 2 3 Utility 37 | . . . . . . . 2 3 . . . . 1 2 1 . . . . 1 7 . 3 5 7 5 Weapon 28 | . . 1 . . 1 1 2 3 . . . . . . . . . . . 1 5 . 1 5 4 4 Highest Loss Streak 12 | . . 1 . . 1 1 1 5 . . . . 1 2 1 1 . . . 2 12 . 2 3 6 12 Average Slot Usage (%) 89 | . 98 100 100 100 91 99 98 92 99 100 73 100 86 97 98 99 93 93 90 85 49 66 73 70 61 29 Engine 5 | . 14 14 14 14 9 9 9 6 7 7 7 7 6 6 6 4 . . . . . . . . . . Core 1 | . . . . . . . . . . . . . . . . 1 6 6 5 5 5 5 2 . 3 2 Treads 13 | . . . . . 9 9 21 17 23 23 23 23 20 19 20 20 13 13 15 11 6 5 7 8 11 6 Wheel 5 | . 28 28 28 28 18 18 6 4 . . . . . . . . . . . . . . . . . . Device 9 | . 12 14 14 14 16 9 9 8 6 7 7 7 6 2 6 6 6 6 5 6 7 21 21 20 12 2 Storage 7 | . 14 14 14 14 9 9 9 7 7 7 7 7 6 6 6 6 6 6 5 5 5 5 4 4 7 5 Processor 4 | . . . . . 1 9 9 7 7 7 7 7 6 6 7 6 6 6 5 5 . 5 4 4 1 4 Hackware 3 | . . . . . . . . . . . . . . 5 7 13 13 13 11 10 5 5 4 3 4 2 Protection 10 | . . . . . 2 8 9 11 15 15 15 15 13 21 15 13 13 13 15 18 5 . 3 8 9 1 Energy Gun 2 | . . . . . 14 20 8 1 . . . . . . . . . . . . 2 5 1 . 1 . Ballistic Gun 20 | . 27 27 27 15 11 4 18 24 30 30 4 28 23 24 24 24 25 26 23 17 10 10 9 11 5 . Naked Turns 46 | . . . . . . . . . . . . . . . . . . . . . . . . . . 46 Heaviest Build 122 | 10 51 51 51 51 62 61 60 79 79 77 77 77 82 93 83 87 90 83 94 109 106 89 119 116 122 76 Greatest Support 230 | 26 26 32 32 32 32 24 66 66 66 66 66 66 66 66 78 90 110 110 133 160 150 80 155 154 230 210 Greatest Overweight (x) 18 | . 1 1 1 1 5 2 2 18 1 1 1 1 1 1 1 1 1 . . . 1 1 1 . . 14 Average Overweight (x) . | . . 1 1 1 2 2 . 1 1 1 . 1 1 1 . . . . . . . 1 . . . . Largest Inventory Capacity 20 | 8 20 20 20 20 20 20 20 20 20 20 20 20 20 20 20 20 20 20 20 20 20 20 20 20 20 20 Average Capacity 19 | 7 16 20 20 20 20 20 20 20 20 20 20 20 20 20 20 20 20 20 20 20 20 20 20 20 20 15 Most Carried 20 | 5 17 20 20 20 20 20 20 20 20 20 20 20 20 20 20 20 20 20 20 19 20 16 20 20 20 11 Average Carried 18 | 1 11 19 19 20 19 19 18 19 19 20 20 20 20 19 19 19 19 20 19 17 15 15 17 18 16 6 Final Capacity 20 | 8 20 20 20 20 20 20 20 20 20 20 20 20 20 20 20 20 20 20 20 20 20 20 20 20 20 5 Final Carried 20 | 5 17 20 20 20 20 20 19 20 20 20 20 20 20 20 20 19 20 20 20 19 16 15 19 16 11 2 Class Distribution -------------------- 38% | Bothacker-Tank 15% | Mutant 10% | Scavenger-Mutant 9% | Scavenger-Skirmisher 8% | Bothacker-Mutant 7% | Scavenger-Tank 6% | Skirmisher Dominant Class ---------------- Mutant | -10/Materials Mutant | -10/Mines Mutant | -10/Exiles Mutant | -9/Mines Skirmisher | -8/Materials Mutant | -8/Garrison Scavenger-Skirmisher | -8/Materials Bothacker-Tank | -7/Factory Bothacker-Tank | -7/Lower Caves Bothacker-Tank | -7/Lower Caves Bothacker-Mutant | -7/Data Miner Bothacker-Tank | -6/Proximity Caves Bothacker-Tank | -6/Factory Bothacker-Tank | -6/Garrison Bothacker-Tank | -6/Factory Bothacker-Mutant | -6/Extension Bothacker-Tank | -6/Cetus Bothacker-Tank | -6/Archives Bothacker-Tank | -5/Factory Scavenger-Tank | -4/Factory Scavenger-Mutant | -4/Upper Caves Scavenger-Tank | -4/Upper Caves Scavenger-Mutant | -3/Research Scavenger-Skirmisher | -2/Research Scavenger-Tank | -1/Access Mutant | -1/Command Resources | -11 -10 -10 -10 -9 -8 -8 -8 -7 -7 -7 -7 -6 -6 -6 -6 -6 -6 -6 -5 -4 -4 -4 -3 -2 -1 -1 ----------- Run | Scr Mat Min Exi Min Mat Gar Mat Fac Low Low Dat Pro Fac Gar Fac Ext Cet Arc Fac Fac Upp Upp Res Res Acc Com Matter Collected 11692 | 272 254 112 60 76 612 168 321 1335 374 198 . 218 82 741 629 774 345 210 266 852 799 64 522 1488 724 196 Remotely 2316 | . . . . . 572 . . 872 374 198 . 218 82 . . . . . . . . . . . . . Salvage Created 14725 | 71 409 203 . 103 1105 317 519 1804 148 109 . 71 82 751 878 798 462 248 266 1273 923 39 690 1905 1174 377 Parts 846 | 1 24 16 . 21 80 25 24 114 7 8 . . 6 30 57 42 19 11 17 67 24 5 42 105 88 13 Haulers Intercepted 9 | . 1 . . . 3 . 2 2 . . . . . . 1 . . . . . . . . . . . Recyclers Shooed 11 | . 1 1 . . 1 . . . . . . . 1 . 1 . . . 1 3 . . 1 1 . . Parts Field Recycled . | . . . . . . . . . . . . . . . . . . . . . . . . . . . Retrieved Matter . | . . . . . . . . . . . . . . . . . . . . . . . . . . . Parts Self-Destructed 38 | . . . . . . . . . 8 8 . 5 . . . . . . . . 13 4 . . . . Prevented . | . . . . . . . . . . . . . . . . . . . . . . . . . . . Kills | -11 -10 -10 -10 -9 -8 -8 -8 -7 -7 -7 -7 -6 -6 -6 -6 -6 -6 -6 -5 -4 -4 -4 -3 -2 -1 -1 ------- Run | Scr Mat Min Exi Min Mat Gar Mat Fac Low Low Dat Pro Fac Gar Fac Ext Cet Arc Fac Fac Upp Upp Res Res Acc Com Combat Hostiles Destroyed 250 | . 8 7 . 9 22 16 11 31 3 4 . 3 3 14 10 10 6 2 4 13 14 5 12 24 15 4 Melee 1 | . . . . . . . . . . . . . . . . . . . . . . . . . . 1 Guns 186 | . 8 2 . 1 13 6 10 27 3 4 . 3 . 11 9 10 3 2 4 13 13 1 7 22 14 . AOE 61 | . . 5 . 8 9 10 1 4 . . . . 3 3 1 . 3 . . . 1 4 5 . 1 3 Classes Destroyed 18 | 1 5 . . 1 5 1 . 3 1 . . . . . . 1 . . . . . . . . . . Worker 16 | . 2 . . . 2 . . 2 . . . . . . 2 . . . . 5 . . . 2 1 . Builder 22 | . . . . . 3 . 1 4 . . . . . . 3 1 . . . 5 . . 1 3 1 . Tunneler 2 | . . . . 1 1 . . . . . . . . . . . . . . . . . . . . . Hauler 9 | . 1 . . . 3 . 2 2 . . . . . . 1 . . . . . . . . . . . Recycler 12 | 1 . 1 . . . . . 2 . . . . . . 2 1 . . . 2 . . 1 1 . 1 Mechanic 3 | . . . . . 1 . . 2 . . . . . . . . . . . . . . . . . . Operator 4 | . . . . . 2 . . 1 . . . . 1 . . . . . . . . . . . . . Watcher 19 | . 2 . . . 3 . . 3 . . . . 1 . 4 1 1 . . . . . 1 1 2 . Swarmer 80 | . 3 5 . 9 11 11 4 3 . 4 . 3 3 3 3 2 . . . . . 5 5 4 . 2 Grunt 64 | . 5 2 . 1 4 4 6 13 2 . . . . 7 2 4 5 . . 1 7 . . . . 1 Brawler 3 | . . . . . 1 . . . . . . . . . . . . . . . 2 . . . . . Duelist 1 | . . . . . . . . . 1 . . . . . . . . . . . . . . . . . Protector 2 | . . . . . . . . 2 . . . . . . . . . . . . . . . . . . Sentry 27 | . . . . . 6 . 1 2 . . . . . 2 . 2 . 2 2 3 1 . 1 5 . . Specialist 2 | . . . . . . . . 2 . . . . . . . . . . . . . . . . . . Hunter 19 | . . . . . . 1 . 5 . . . . . 2 1 . 1 . . 2 . . . 4 3 . Programmer 48 | . . . . . . . . 4 . . . . . 1 4 . . . 2 7 . . 6 11 12 1 Behemoth 2 | . . . . . . . . . . . . . . . . 2 . . . . . . . . . . Thug 6 | . . . . . . . . . . . . . . . . . 1 1 . . 4 . . . . . Savage 1 | . . . . . . . . . . . . . . . . . 1 . . . . . . . . . Guerrilla 1 | . . . . . . . . . . . . . . . . . . 1 . . . . . . . . Best Kill Streak 15 | 1 4 5 . 4 4 8 3 15 3 4 . 3 4 4 6 3 4 2 2 12 5 5 5 11 5 3 Combat Bots Only 10 | . 4 3 . 4 4 8 3 10 3 4 . 3 3 4 3 2 4 2 2 5 5 5 5 6 5 2 Max Kills in Single Turn 4 | 1 1 3 . 4 4 3 2 3 2 2 . 2 1 2 3 1 2 2 1 2 1 2 3 3 2 3 Gunslinging 1 | . . . . . 1 . . . 1 1 . 1 . . . . . . . . . . . . 1 . Exploded 4 | . . 3 . 3 4 3 1 2 . . . . 1 2 1 . 2 . . . 1 2 3 . 1 2 Melee 1 | . . . . . . . . . . . . . . . . . . . . . . . . . . 1 Uniques/NPCs Destroyed . | . . . . . . . . . . . . . . . . . . . . . . . . . . . Combat | -11 -10 -10 -10 -9 -8 -8 -8 -7 -7 -7 -7 -6 -6 -6 -6 -6 -6 -6 -5 -4 -4 -4 -3 -2 -1 -1 -------- Run | Scr Mat Min Exi Min Mat Gar Mat Fac Low Low Dat Pro Fac Gar Fac Ext Cet Arc Fac Fac Upp Upp Res Res Acc Com Damage Taken 26599 | . 333 188 . 59 631 350 889 2148 33 137 . 214 202 779 649 498 165 129 661 2554 3416 30 1618 2815 4677 3424 Core 3083 | . 95 39 . . 61 53 113 303 16 . . 14 . 28 52 20 39 28 23 115 119 . 120 240 299 1306 Absorbed by Shields 875 | . . . . . . . . . . . . . . . . 212 54 . . . 94 32 198 261 24 . Core Remaining (%) 76 | 100 . . . 46 . . 58 . . . . 52 . . . . . 80 97 . . 79 90 83 . . Volleys Fired 835 | 7 61 13 . 4 69 32 44 87 4 3 . 3 4 33 36 54 14 12 15 58 46 3 47 113 69 4 Largest 4 | 2 2 2 . 2 3 3 3 4 4 4 . 4 4 4 4 4 4 4 4 4 4 3 3 4 3 1 Hottest 179 | 40 40 50 . 50 135 135 113 124 112 112 . 112 112 122 179 127 129 129 134 164 129 120 120 136 148 80 Shots Fired 1954 | 14 119 25 . 6 189 52 123 263 18 15 . 15 7 95 95 106 35 36 51 168 84 5 68 256 105 4 Gun 1781 | 14 116 23 . 2 182 43 123 259 18 15 . 15 4 91 85 87 29 34 51 157 78 3 40 228 84 . Cannon 76 | . . . . . . . . . . . . . . . 7 1 . . . 4 . . 18 25 21 . Launcher 53 | . 3 2 . 4 7 9 . 4 . . . . 3 2 1 . 6 . . . 2 2 5 . . 3 Special 44 | . . . . . . . . . . . . . . 2 2 18 . 2 . 7 4 . 5 3 . 1 Kinetic 1634 | 14 116 23 . 2 123 7 99 228 18 15 . 15 4 91 85 87 29 34 51 161 74 2 44 228 84 . Thermal 102 | . . . . . . . 5 31 . . . . . . 7 1 . . . . 4 1 14 18 21 . Explosive 50 | . 3 2 . 4 7 9 . 4 . . . . 3 2 1 . 6 . . . 2 2 5 . . . Electromagnetic 124 | . . . . . 59 36 19 . . . . . . . . . . . . . . . . 7 . 3 Robot Hit Streak 28 | 3 14 13 . 2 15 11 23 28 8 5 . 3 2 13 13 15 6 9 11 11 9 7 10 17 26 3 Robot Miss Streak 11 | 5 3 2 . 2 6 2 2 8 10 8 . 11 5 10 7 4 3 5 2 5 4 . 5 5 3 2 Penetration Max 2 | . . . . . . . . . . . . . . 1 1 1 1 1 . 1 1 . 1 2 1 . Secondary Targets 27 | . . . . . 3 . 3 4 1 1 . 1 . 2 . . . . . 5 1 . 1 3 2 . Max Gunslinging Chain 1 | . . . . . 1 . 1 1 1 1 . 1 . 1 . . . . . 1 1 . 1 1 1 . Shots Hit Robots 1373 | 6 79 16 . 1 126 30 96 190 13 9 . 13 7 80 65 82 22 29 28 110 60 3 45 183 68 12 Core Hits 860 | 2 29 13 . 11 69 27 37 118 14 12 . 11 10 75 56 69 30 15 13 52 32 5 30 70 42 18 Critical Kills 18 | . . . . . . . . 1 . . . . . 1 1 1 . . . 3 1 . 3 6 1 . Critical Parts Destroyed 34 | . . . . . . . . . . . . . . 4 2 1 . . 2 10 3 . 1 10 1 . Critical Strikes 60 | . . . . . . . . 5 . . . . . 5 3 2 . . 2 13 5 . 5 18 2 . Burn 5 | . . . . . . . . 4 . . . . . . . . . . . . . . 1 . . . Destroy 54 | . . . . . . . . 1 . . . . . 5 3 2 . . 2 13 5 . 4 17 2 . Corrupt 1 | . . . . . . . . . . . . . . . . . . . . . . . . 1 . . Melee Attacks 63 | . . . . . . . . . . 1 . 8 6 2 5 . . . . 3 . . 20 . 5 13 Impact . | . . . . . . . . . . . . . . . . . . . . . . . . . . . Slashing 63 | . . . . . . . . . . 1 . 8 6 2 5 . . . . 3 . . 20 . 5 13 Piercing . | . . . . . . . . . . . . . . . . . . . . . . . . . . . Sneak Attacks 2 | . . . . . . . . . . . . . . . 1 . . . . . . . . . 1 . Combat Hostiles . | . . . . . . . . . . . . . . . . . . . . . . . . . . . Follow-up Attacks . | . . . . . . . . . . . . . . . . . . . . . . . . . . . Damage Inflicted 38553 | 46 685 505 . 436 2190 1306 1232 4863 222 139 . 133 387 1701 2006 1844 1183 684 705 3258 2559 470 2145 5705 3363 786 Guns 29602 | 46 685 170 . 16 1522 408 1162 3474 222 139 . 133 72 1476 1408 1844 690 684 705 3169 2359 49 777 5437 2955 . Cannons 621 | . . . . . . . . . . . . . . . 31 . . . . 75 . . 151 241 123 . Explosions 7157 | . . 335 . 420 649 898 68 1389 . . . . 259 225 425 . 493 . . . 200 421 736 . 179 460 Melee 1091 | . . . . . . . . . . . . . 56 . 142 . . . . . . . 465 . 102 326 Ramming 82 | . . . . . 19 . 2 . . . . . . . . . . . . 14 . . 16 27 4 . Kinetic 27731 | 46 685 170 . 16 871 9 811 2998 222 139 . 133 72 1476 1408 1844 690 684 705 3244 2308 49 759 5437 2955 . Thermal 1395 | . . . . . 185 . 140 476 . . . . . . 31 . . . . . 51 . 169 . 123 220 Explosive 6444 | . . 335 . 420 464 898 . 1389 . . . . 259 225 425 . 493 . . . 200 421 736 . 179 . Electromagnetic 1810 | . . . . . 651 399 279 . . . . . . . . . . . . . . . . 241 . 240 Impact . | . . . . . . . . . . . . . . . . . . . . . . . . . . . Slashing 1091 | . . . . . . . . . . . . . 56 . 142 . . . . . . . 465 . 102 326 Piercing . | . . . . . . . . . . . . . . . . . . . . . . . . . . . Highest Corruption 39 | . . . . . . . . 7 7 7 7 7 1 1 3 3 3 3 1 11 20 20 20 12 26 39 Average Corruption 6 | . . . . . . . . 6 7 7 7 7 1 1 2 3 3 3 1 5 19 20 12 8 12 31 Corruption Purged . | . . . . . . . . . . . . . . . . . . . . . . . . . . . Effects 424 | . . . . . . . . 69 39 34 2 32 . 7 17 21 9 6 1 21 47 7 40 18 37 17 Message Errors 95 | . . . . . . . . 15 13 10 . 7 . 2 4 4 1 1 1 8 2 3 9 6 7 2 Matter Fused 102 | . . . . . . . . 12 11 12 . 10 . . 6 6 3 1 . 5 14 . 8 4 8 2 Heat Flow Errors 51 | . . . . . . . . 12 5 2 . 4 . . 2 3 1 2 . 1 7 1 3 2 4 2 Energy Discharges 40 | . . . . . . . . 8 1 . 1 4 . 4 2 3 2 1 . 3 3 1 3 . 2 2 Parts Rejected 6 | . . . . . . . . 1 . . . . . . . . . . . 1 . . 1 1 1 1 Data Loss (minor) 47 | . . . . . . . . 5 6 6 . 3 . . 2 5 1 . . 1 8 . 6 . 3 1 Data Loss (major) 19 | . . . . . . . . 8 1 1 1 1 . . . . . . . . 1 . 1 2 2 1 Misfires 19 | . . . . . . . . 6 2 3 . 3 . . . . . . . 1 1 . 2 . 1 . Alerts 7 | . . . . . . . . . . . . . . . . . . . . . 3 . 1 1 1 1 Misdirections 23 | . . . . . . . . . . . . . . . . . . . . . 3 2 5 1 7 5 Weapon Failures 15 | . . . . . . . . 2 . . . . . 1 1 . 1 1 . 1 5 . 1 1 1 . Overload Shots . | . . . . . . . . . . . . . . . . . . . . . . . . . . . Overflow Damage 455 | . . 18 . . 12 191 . 8 . . . . . 13 19 . . . . . 17 59 74 4 19 21 Projectiles 19 | . . . . . . . . . . . . . . . . . . . . . . . . . 19 . Explosions 399 | . . 18 . . 12 191 . 8 . . . . . 13 19 . . . . . 17 59 41 . . 21 Melee 37 | . . . . . . . . . . . . . . . . . . . . . . . 33 4 . . Knockbacks 1 | . . . . . 1 . . . . . . . . . . . . . . . . . . . . . Impact 1 | . . . . . 1 . . . . . . . . . . . . . . . . . . . . . Kinetic . | . . . . . . . . . . . . . . . . . . . . . . . . . . . Secondary . | . . . . . . . . . . . . . . . . . . . . . . . . . . . Self-Inflicted Damage 436 | . . 32 . 39 147 47 94 . . . . . . . . . . . . . . . 31 . . 46 Shots 16 | . . 1 . 1 5 2 2 . . . . . . . . . . . . . . . 1 . . 4 Rammed 16 | . . . . . 5 . 1 . . . . . . . 1 . . . . 4 . . 1 3 1 . Targets Rammed 16 | . . . . . 5 . 1 . . . . . . . 1 . . . . 4 . . 1 3 1 . Kicked . | . . . . . . . . . . . . . . . . . . . . . . . . . . . Crushed . | . . . . . . . . . . . . . . . . . . . . . . . . . . . Highest Temperature 503 | . 9 14 . . 30 68 32 304 270 190 . 283 36 338 243 262 59 201 33 250 503 148 168 171 198 169 Average Temperature 78 | . 7 14 . . 13 27 10 72 92 78 . 97 20 98 56 74 28 48 17 48 176 75 57 19 44 67 Received Heat Transfer 3512 | . 120 96 . . 198 117 369 450 18 . . . . 222 27 151 35 . 36 222 930 . 26 225 . 270 Effects 6 | . . . . . . . . 1 . . . . . . . . . . . . 5 . . . . . Shutdowns 2 | . . . . . . . . . . . . . . . . . . . . . 2 . . . . . Energy Bleed 1 | . . . . . . . . 1 . . . . . . . . . . . . . . . . . . Interference 1 | . . . . . . . . . . . . . . . . . . . . . 1 . . . . . Matter Decay 1 | . . . . . . . . . . . . . . . . . . . . . 1 . . . . . Short Circuit 1 | . . . . . . . . . . . . . . . . . . . . . 1 . . . . . Siege Activations 1 | . . . . . . . . . . . . . . . . . . . . 1 . . . . . . Total Turns 9 | . . . . . . . . . . . . . . . . . . . . 9 . . . . . . Longest Duration 9 | . . . . . . . . . . . . . . . . . . . . 9 . . . . . . Robots Corrupted 2 | . . . . . . . . . . . . . . . . . . . . . . . . 2 . . Combat Hostiles 2 | . . . . . . . . . . . . . . . . . . . . . . . . 2 . . Parts Fried 8 | . . . . . 3 1 . . . . . . . . . 1 . . . . . . . 2 . 1 Impact Corruptions 1 | . . . . . . . . . . . . . . . . . . . . . . . . 1 . . Robots Melted . | . . . . . . . . . . . . . . . . . . . . . . . . . . . Combat Hostiles . | . . . . . . . . . . . . . . . . . . . . . . . . . . . Parts Melted 7 | . . . . 1 . . . 3 . . . . . . . 2 1 . . . . . . . . . Heat Transferred 2263 | . . . . . 150 . 248 1147 . . . . . . 37 . . . . . 111 . 259 . 111 200 Parts Sabotaged . | . . . . . . . . . . . . . . . . . . . . . . . . . . . Parts Stolen . | . . . . . . . . . . . . . . . . . . . . . . . . . . . Parts Stripped . | . . . . . . . . . . . . . . . . . . . . . . . . . . . Power Chain Reactions 9 | . . . . . 4 . 2 . . . . . . . . . . . . . . . . . . 3 Missiles Intercepted . | . . . . . . . . . . . . . . . . . . . . . . . . . . . Alert | -11 -10 -10 -10 -9 -8 -8 -8 -7 -7 -7 -7 -6 -6 -6 -6 -6 -6 -6 -5 -4 -4 -4 -3 -2 -1 -1 ------- Run | Scr Mat Min Exi Min Mat Gar Mat Fac Low Low Dat Pro Fac Gar Fac Ext Cet Arc Fac Fac Upp Upp Res Res Acc Com Peak Influence 741 | 5 372 169 . 267 330 741 667 618 . . . . 127 381 245 428 540 238 233 213 . . 252 606 580 535 Initial 360 | . 3 59 . . 104 183 360 245 . . . . . 14 199 82 64 136 83 24 . . 74 141 320 252 Average 235 | . 186 108 . 215 147 556 509 480 . . . . 38 246 105 160 307 227 107 76 . . 72 262 363 394 Maximum Alert Level 3 | . 1 . . 1 1 3 2 2 . . . . . 1 1 2 2 1 1 1 . . 1 2 2 2 Low Security (%) 52 | 100 54 100 . 33 75 1 . . . . . . 100 37 94 68 17 14 93 96 . . 95 43 . . Level 1 26 | . 45 . . 66 24 8 18 17 . . . . . 62 5 28 69 85 6 3 . . 4 33 69 40 Level 2 19 | . . . . . . 66 81 82 . . . . . . . 3 13 . . . . . . 23 30 59 Level 3 . | . . . . . . 22 . . . . . . . . . . . . . . . . . . . . Level 4 . | . . . . . . . . . . . . . . . . . . . . . . . . . . . Level 5 . | . . . . . . . . . . . . . . . . . . . . . . . . . . . High Security . | . . . . . . . . . . . . . . . . . . . . . . . . . . . Max Security . | . . . . . . . . . . . . . . . . . . . . . . . . . . . Squads Dispatched 57 | . 4 . . . 3 . 3 10 . . . . 3 . 5 2 . . 2 6 . . 2 9 7 1 Investigation 9 | . 2 . . . 1 . 1 1 . . . . 1 . . . . . . 1 . . . 1 1 . Extermination 23 | . . . . . . . . 3 . . . . 1 . 3 . . . 2 4 . . 2 5 3 . Reinforcement 17 | . 2 . . . 2 . . 3 . . . . 1 . 2 2 . . . 1 . . . . 3 1 Assault . | . . . . . . . . . . . . . . . . . . . . . . . . . . . Garrison 8 | . . . . . . . 2 3 . . . . . . . . . . . . . . . 3 . . Intercept . | . . . . . . . . . . . . . . . . . . . . . . . . . . . Construction Impeded 4 | . . . . . . . . 1 . . . . . . 2 1 . . . . . . . . . . Haulers Reinforced 1 | . . . . . . . . 1 . . . . . . . . . . . . . . . . . . Cargo Convoy Interrupts . | . . . . . . . . . . . . . . . . . . . . . . . . . . . Stealth | -11 -10 -10 -10 -9 -8 -8 -8 -7 -7 -7 -7 -6 -6 -6 -6 -6 -6 -6 -5 -4 -4 -4 -3 -2 -1 -1 --------- Run | Scr Mat Min Exi Min Mat Gar Mat Fac Low Low Dat Pro Fac Gar Fac Ext Cet Arc Fac Fac Upp Upp Res Res Acc Com Distress Signals 15 | . . . . . . . . 4 . . . . . . . 2 1 . . 1 . . 1 2 3 1 Communications Jammed 111 | . . . . . . . . . . . . . . . . . 43 . . 68 . . . . . . Distress Signals 111 | . . . . . . . . . . . . . . . . . 43 . . 68 . . . . . . Times Spotted 440 | . 24 8 . 7 34 16 17 48 3 4 . 4 8 16 13 26 19 6 4 29 17 5 20 42 32 38 Peak Tracking Total 21 | . 7 3 . 3 4 4 5 13 3 4 . 4 3 4 3 5 6 1 3 9 7 5 6 8 11 21 Tactical Retreats 23 | . 2 . . . 1 . 3 3 . . . . . . . 1 . . . . 1 . 1 5 . 6 Traps | -11 -10 -10 -10 -9 -8 -8 -8 -7 -7 -7 -7 -6 -6 -6 -6 -6 -6 -6 -5 -4 -4 -4 -3 -2 -1 -1 ------- Run | Scr Mat Min Exi Min Mat Gar Mat Fac Low Low Dat Pro Fac Gar Fac Ext Cet Arc Fac Fac Upp Upp Res Res Acc Com Traps Triggered 26 | . . . . . 1 3 1 3 . . . . . 9 2 3 . . 1 1 . . 1 . . 1 Indirectly 1 | . . . . . . . . . . . . . . . . . . . . . . . . . . 1 Trap Hack Attempts . | . . . . . . . . . . . . . . . . . . . . . . . . . . . Triggered . | . . . . . . . . . . . . . . . . . . . . . . . . . . . Disarmed . | . . . . . . . . . . . . . . . . . . . . . . . . . . . Reprogrammed . | . . . . . . . . . . . . . . . . . . . . . . . . . . . Reused . | . . . . . . . . . . . . . . . . . . . . . . . . . . . Traps Extracted . | . . . . . . . . . . . . . . . . . . . . . . . . . . . Installed . | . . . . . . . . . . . . . . . . . . . . . . . . . . . Triggered 6 | . . . . . . . . . 5 1 . . . . . . . . . . . . . . . . Machines | -11 -10 -10 -10 -9 -8 -8 -8 -7 -7 -7 -7 -6 -6 -6 -6 -6 -6 -6 -5 -4 -4 -4 -3 -2 -1 -1 ---------- Run | Scr Mat Min Exi Min Mat Gar Mat Fac Low Low Dat Pro Fac Gar Fac Ext Cet Arc Fac Fac Upp Upp Res Res Acc Com Machines Disabled 22 | . 1 . . . . 2 . 1 . . . . 1 1 3 2 4 3 . . . . 1 2 1 . Max in Single Turn 1 | . 1 . . . . 1 . 1 . . . . 1 1 1 1 1 1 . . . . 1 1 1 . Garrison Access 3 | . . . . . . . 1 . . . . . . . . . . . 1 . . . 1 . . . Garrison Relay 3 | . . . . . . 2 . . . . . . . 1 . . . . . . . . . . . . Machines Sabotaged . | . . . . . . . . . . . . . . . . . . . . . . . . . . . Garrisons Compromised . | . . . . . . . . . . . . . . . . . . . . . . . . . . . Overloaded Fab Kills . | . . . . . . . . . . . . . . . . . . . . . . . . . . . Fab Network Shutdowns . | . . . . . . . . . . . . . . . . . . . . . . . . . . . Hacking | -11 -10 -10 -10 -9 -8 -8 -8 -7 -7 -7 -7 -6 -6 -6 -6 -6 -6 -6 -5 -4 -4 -4 -3 -2 -1 -1 --------- Run | Scr Mat Min Exi Min Mat Gar Mat Fac Low Low Dat Pro Fac Gar Fac Ext Cet Arc Fac Fac Upp Upp Res Res Acc Com Machines Accessed 69 | . 8 1 2 . 13 . 6 4 1 . 3 . 3 . 5 2 1 . 5 4 . . 4 4 2 1 Terminals 47 | . 5 . . . 10 . 5 2 . . . . 2 . 3 2 1 . 4 3 . . 3 4 2 1 Fabricators . | . . . . . . . . . . . . . . . . . . . . . . . . . . . Repair Stations 4 | . 1 . . . . . . 2 . . . . . . . . . . . 1 . . . . . . Recycling Units 5 | . 2 . . . 1 . . . . . . . . . 2 . . . . . . . . . . . Scanalyzers 1 | . . . . . 1 . . . . . . . . . . . . . . . . . . . . . Garrison Access 5 | . . . . . 1 . 1 . . . . . 1 . . . . . 1 . . . 1 . . . Total Hacks 196 | . 28 1 2 . 56 . 14 10 1 . 18 . 7 . 10 8 1 . 9 9 . . 8 9 4 1 Successful 102 | . 18 1 2 . 29 . 5 4 1 . 18 . 2 . 3 4 . . 4 2 . . 4 4 1 . Failed 93 | . 9 . . . 27 . 9 6 . . . . 5 . 7 4 1 . 5 7 . . 4 5 3 1 Catastrophic 23 | . 2 . . . 5 . 2 1 . . . . . . 3 1 . . 3 2 . . 2 1 . 1 Database Lockouts 1 | . 1 . . . . . . . . . . . . . . . . . . . . . . . . . Manual 87 | . 17 . 1 . 33 . 13 2 . . . . . . 6 4 1 . 1 2 . . 4 2 1 . Terminals 140 | . 19 . . . 50 . 13 5 . . . . 6 . 5 8 1 . 7 6 . . 6 9 4 1 Fabricators . | . . . . . . . . . . . . . . . . . . . . . . . . . . . Repair Stations 10 | . 2 . . . . . . 5 . . . . . . . . . . . 3 . . . . . . Recycling Units 15 | . 7 . . . 3 . . . . . . . . . 5 . . . . . . . . . . . Scanalyzers 2 | . . . . . 2 . . . . . . . . . . . . . . . . . . . . . Garrison Access 7 | . . . . . 1 . 1 . . . . . 1 . . . . . 2 . . . 2 . . . Terminal Hacks 62 | . 9 1 2 . 15 . 2 1 1 . 18 . 1 . 1 2 . . 2 . . . 2 4 1 . Record 4 | . . . 1 . . . . . . . 1 . . . . . . . . . . . 1 1 . . Part Schematic 9 | . . . . . . . . . . . 9 . . . . . . . . . . . . . . . Robot Schematic 5 | . . . . . . . . . . . 5 . . . . . . . . . . . . . . . Robot Analysis 7 | . 2 . . . 3 . . 1 . . . . . . . . . . . . . . . 1 . . Prototype ID Bank 7 | . . . . . 4 . . . . . 3 . . . . . . . . . . . . . . . Open Door 2 | . . 1 . . . . . . 1 . . . . . . . . . . . . . . . . . Level Access Points 2 | . . . . . . . . . . . . . . . . . . . 1 . . . . 1 . . Branch Access Points 3 | . . . . . . . 1 . . . . . . . 1 . . . 1 . . . . . . . Emergency Access Points 1 | . . . . . 1 . . . . . . . . . . . . . . . . . . . . . Machine Index 1 | . . . . . 1 . . . . . . . . . . . . . . . . . . . . . Terminal Index 7 | . 1 . . . 1 . 1 . . . . . 1 . . . . . . . . . 1 1 1 . Recycling Unit Index 1 | . 1 . . . . . . . . . . . . . . . . . . . . . . . . . Unreport Threat 2 | . . . . . 1 . . . . . . . . . . 1 . . . . . . . . . . Locate Traps 3 | . 2 . . . . . . . . . . . . . . 1 . . . . . . . . . . Reinforcement Status 1 | . 1 . . . . . . . . . . . . . . . . . . . . . . . . . Zone Layout 6 | . 2 . . . 4 . . . . . . . . . . . . . . . . . . . . . EX-Prototype ID Bank 1 | . . . 1 . . . . . . . . . . . . . . . . . . . . . . . Fabricator Hacks . | . . . . . . . . . . . . . . . . . . . . . . . . . . . Repair Station Hacks 7 | . 2 . . . . . . 3 . . . . . . . . . . . 2 . . . . . . Scan Component 4 | . 1 . . . . . . 2 . . . . . . . . . . . 1 . . . . . . Repair 3 | . 1 . . . . . . 1 . . . . . . . . . . . 1 . . . . . . Recycling Unit Hacks 5 | . 3 . . . 1 . . . . . . . . . 1 . . . . . . . . . . . Retrieve Matter 1 | . 1 . . . . . . . . . . . . . . . . . . . . . . . . . Retrieve Components 4 | . 2 . . . 1 . . . . . . . . . 1 . . . . . . . . . . . Scanalyzer 2 | . . . . . 2 . . . . . . . . . . . . . . . . . . . . . Insert Component 1 | . . . . . 1 . . . . . . . . . . . . . . . . . . . . . Analyze 1 | . . . . . 1 . . . . . . . . . . . . . . . . . . . . . Garrison Access Hacks 7 | . . . . . 1 . 1 . . . . . 1 . . . . . 2 . . . 2 . . . Unlock Access 2 | . . . . . 1 . . . . . . . 1 . . . . . . . . . . . . . Seal Access 3 | . . . . . . . 1 . . . . . . . . . . . 1 . . . 1 . . . Coupler Status 2 | . . . . . . . . . . . . . . . . . . . 1 . . . 1 . . . Unauthorized Hacks 19 | . 4 . . . 10 . 2 . . . . . . . 1 2 . . . . . . . . . . Terminals 14 | . 1 . . . 9 . 2 . . . . . . . . 2 . . . . . . . . . . Track 5 | . . . . . 4 . . . . . . . . . . 1 . . . . . . . . . . Assimilate 1 | . . . . . 1 . . . . . . . . . . . . . . . . . . . . . Botnet 5 | . . . . . 3 . 1 . . . . . . . . 1 . . . . . . . . . . Operators 3 | . 1 . . . 1 . 1 . . . . . . . . . . . . . . . . . . . Fabricators . | . . . . . . . . . . . . . . . . . . . . . . . . . . . Repair Stations . | . . . . . . . . . . . . . . . . . . . . . . . . . . . Recycling Units 5 | . 3 . . . 1 . . . . . . . . . 1 . . . . . . . . . . . Mask 3 | . 1 . . . 1 . . . . . . . . . 1 . . . . . . . . . . . Tunnel 2 | . 2 . . . . . . . . . . . . . . . . . . . . . . . . . Scanalyzers . | . . . . . . . . . . . . . . . . . . . . . . . . . . . Garrison Access . | . . . . . . . . . . . . . . . . . . . . . . . . . . . Data Cores Recovered 1 | . . . . . . . . . . . . . 1 . . . . . . . . . . . . . Used 1 | . . . . . . . . . . . . . 1 . . . . . . . . . . . . . Hacking Detections 58 | . 7 . . . 11 . 5 4 . . . . 3 . 5 2 2 . 4 4 . . 4 4 2 1 Full Trace Events 5 | . . . . . 1 . . 1 . . . . 1 . . . . . . 1 . . . 1 . . Feedback Events . | . . . . . . . . . . . . . . . . . . . . . . . . . . . Feedback Blocked . | . . . . . . . . . . . . . . . . . . . . . . . . . . . Robot Schematics Acquired 5 | . . . . . . . . . . . 5 . . . . . . . . . . . . . . . Robots Built . | . . . . . . . . . . . . . . . . . . . . . . . . . . . Matter . | . . . . . . . . . . . . . . . . . . . . . . . . . . . Time . | . . . . . . . . . . . . . . . . . . . . . . . . . . . Total Robot Build Rating . | . . . . . . . . . . . . . . . . . . . . . . . . . . . Part Schematics Acquired 10 | . . . . . 1 . . . . . 9 . . . . . . . . . . . . . . . Parts Built . | . . . . . . . . . . . . . . . . . . . . . . . . . . . Matter . | . . . . . . . . . . . . . . . . . . . . . . . . . . . Time . | . . . . . . . . . . . . . . . . . . . . . . . . . . . Total Part Build Rating . | . . . . . . . . . . . . . . . . . . . . . . . . . . . Parts Repaired 3 | . 1 . . . . . . 1 . . . . . . . . . . . 1 . . . . . . Time 73 | . 26 . . . . . . 19 . . . . . . . . . . . 28 . . . . . . Parts Recycled . | . . . . . . . . . . . . . . . . . . . . . . . . . . . Recycled Matter . | . . . . . . . . . . . . . . . . . . . . . . . . . . . Retrieved Matter . | . . . . . . . . . . . . . . . . . . . . . . . . . . . Retrieved Components 13 | . 3 . . . 10 . . . . . . . . . . . . . . . . . . . . . Parts Scanalyzed 1 | . . . . . 1 . . . . . . . . . . . . . . . . . . . . . Part Schematics Acquired 1 | . . . . . 1 . . . . . . . . . . . . . . . . . . . . . Parts Damaged . | . . . . . . . . . . . . . . . . . . . . . . . . . . . Bothacking | -11 -10 -10 -10 -9 -8 -8 -8 -7 -7 -7 -7 -6 -6 -6 -6 -6 -6 -6 -5 -4 -4 -4 -3 -2 -1 -1 ------------ Run | Scr Mat Min Exi Min Mat Gar Mat Fac Low Low Dat Pro Fac Gar Fac Ext Cet Arc Fac Fac Upp Upp Res Res Acc Com Used RIF Installer 2 | . . . . . . 1 . . . . . . . 1 . . . . . . . . . . . . Signal Jammer 1 | . . . . . . . . . . . . . . 1 . . . . . . . . . . . . Robots Hacked 15 | . . . . . . . . . . . . . . 2 1 2 . . . 3 2 . 2 2 . 1 Non-combat 4 | . . . . . . . . . . . . . . . . 1 . . . 3 . . . . . . Combat 11 | . . . . . . . . . . . . . . 2 1 1 . . . . 2 . 2 2 . 1 Robot Hacks Applied 16 | . . . . . . . . . . . . . . 2 1 3 . . . 3 2 . 2 2 . 1 parse_system 1 | . . . . . . . . . . . . . . . . 1 . . . . . . . . . . find_chute 2 | . . . . . . . . . . . . . . . . . . . . 2 . . . . . . purge_threat 2 | . . . . . . . . . . . . . . . . 2 . . . . . . . . . . amplify_resonance 2 | . . . . . . . . . . . . . . . 1 . . . . . 1 . . . . . disable_weapons 1 | . . . . . . . . . . . . . . . . . . . . . . . 1 . . . go_dormant 1 | . . . . . . . . . . . . . . . . . . . . . . . . 1 . . overwrite_iff 4 | . . . . . . . . . . . . . . 2 . . . . . . 1 . . . . 1 streamctrl_low 1 | . . . . . . . . . . . . . . . . . . . . 1 . . . . . . formatsys_high 2 | . . . . . . . . . . . . . . . . . . . . . . . 1 1 . . Relay Couplers Released 14 | . . . . . . 10 . . . . . . . 3 . . . . . . . . 1 . . . Machine Destruction 14 | . . . . . . 10 . . . . . . . 3 . . . . . . . . 1 . . . Attached 7 | . . . . . . 1 . . . . . . . 1 1 1 . . . 1 . . 1 1 . . Robots Rewired 19 | . . . . . . . . . . . . . . . . 18 . . . 1 . . . . . . Allies Hacked 2 | . . . . . . . . . . . . . . . . . . . . . . . 1 . 1 . Hacks Repelled . | . . . . . . . . . . . . . . . . . . . . . . . . . . . Allies | -11 -10 -10 -10 -9 -8 -8 -8 -7 -7 -7 -7 -6 -6 -6 -6 -6 -6 -6 -5 -4 -4 -4 -3 -2 -1 -1 -------- Run | Scr Mat Min Exi Min Mat Gar Mat Fac Low Low Dat Pro Fac Gar Fac Ext Cet Arc Fac Fac Upp Upp Res Res Acc Com Total Allies 41 | . . 5 . . . . . . . . . 1 . 2 . 27 . . . 2 1 . 1 1 . 1 Largest Group 17 | . . 5 5 3 2 . . . . . . 1 . 1 . 17 17 5 . 2 1 . 1 1 1 1 Highest-Rated Group 602 | . . 96 96 40 24 . . . . . . 95 . 32 . 602 602 275 . 40 58 . 64 58 58 58 Highest-Rated Ally 156 | . . 31 31 16 16 . . . . . . 95 . 32 . 156 156 156 . 28 58 . 64 58 58 58 Total Orders 10 | . . . . . . . . . . . . . . . . . 2 . . 1 . 1 1 4 1 . STAY 2 | . . . . . . . . . . . . . . . . . 1 . . . . . . 1 . . FOLLOW 1 | . . . . . . . . . . . . . . . . . 1 . . . . . . . . . DROP 1 | . . . . . . . . . . . . . . . . . . . . 1 . . . . . . EXPLORE 1 | . . . . . . . . . . . . . . . . . . . . . . . . . 1 . RETURN 5 | . . . . . . . . . . . . . . . . . . . . . . 1 1 3 . . Ally Attacks 274 | . . 1 . 5 9 . . . . . . 15 . 3 . 106 81 14 . 10 3 . 3 19 4 1 Total Damage 6261 | . . 12 . 62 106 . . . . . . 371 . 150 . 2861 1737 272 . 103 137 . 148 172 130 . Kills 42 | . . 1 . 1 . . . . . . . 2 . 1 . 23 11 2 . 1 . . . . . . Allies Corrupted 2 | . . . . . . . . . . . . . . . . . . . . . . . 1 . 1 . Allies Melted . | . . . . . . . . . . . . . . . . . . . . . . . . . . . Intel | -11 -10 -10 -10 -9 -8 -8 -8 -7 -7 -7 -7 -6 -6 -6 -6 -6 -6 -6 -5 -4 -4 -4 -3 -2 -1 -1 ------- Run | Scr Mat Min Exi Min Mat Gar Mat Fac Low Low Dat Pro Fac Gar Fac Ext Cet Arc Fac Fac Upp Upp Res Res Acc Com Robot Analysis Total 7 | . 2 . . . 3 . . 1 . . . . . . . . . . . . . . . 1 . . Derelict Logs Recovered 5 | . . 1 . . . . . . 1 . . 2 . . . . . . . . 1 . . . . . Drone Launches 25 | . . . . . . . . . . . . . . . . . . . . . . 1 1 20 3 . Drone Recoveries 23 | . . . . . . . . . . . . . . . . . . . . . . 1 1 19 2 . Exploration | -11 -10 -10 -10 -9 -8 -8 -8 -7 -7 -7 -7 -6 -6 -6 -6 -6 -6 -6 -5 -4 -4 -4 -3 -2 -1 -1 ------------- Run | Scr Mat Min Exi Min Mat Gar Mat Fac Low Low Dat Pro Fac Gar Fac Ext Cet Arc Fac Fac Upp Upp Res Res Acc Com Turns Passed 27784 | 75 859 766 717 359 2209 915 638 2667 1492 1219 147 973 922 2482 1988 1266 572 277 565 1141 817 150 1576 1812 961 219 Spaces Moved 13651 | 48 622 639 610 299 1453 597 338 1089 600 491 91 379 337 798 797 457 312 145 311 536 342 54 699 945 502 160 Core 96 | 1 . . . . . . . 2 . . . . . . . . . . . . . . . . . 93 Treads 8861 | . . . . . 1 1 220 776 600 491 91 379 337 798 797 457 312 145 311 536 342 54 699 945 502 67 Legs . | . . . . . . . . . . . . . . . . . . . . . . . . . . . Wheels 4694 | 47 622 639 610 299 1452 596 118 311 . . . . . . . . . . . . . . . . . . Hover . | . . . . . . . . . . . . . . . . . . . . . . . . . . . Flight . | . . . . . . . . . . . . . . . . . . . . . . . . . . . Fastest Speed 50 | 50 90 105 115 115 110 120 120 110 245 245 145 245 245 245 155 160 160 160 160 160 160 260 152 145 145 50 Average Speed 170 | 89 101 106 115 115 117 120 136 197 245 245 153 245 245 245 226 205 160 160 160 163 191 260 192 147 151 99 Slowest Speed 950 | 100 105 115 115 115 345 345 145 950 245 245 245 245 245 245 255 255 260 160 160 170 260 260 260 152 158 750 Overloaded Moves . | . . . . . . . . . . . . . . . . . . . . . . . . . . . Propulsion Burnouts . | . . . . . . . . . . . . . . . . . . . . . . . . . . . Robots Hopped . | . . . . . . . . . . . . . . . . . . . . . . . . . . . Cave-ins Triggered 1 | . . . . . . . . . . . . . . . . . . . . . . . . . 1 . Exploration Rate (%) 45 | 4 88 97 71 57 72 49 23 29 68 67 72 59 10 63 22 70 62 80 9 11 49 13 19 28 16 8 Regions Visited 26 Branch Regions 13 Pre-discovered Areas 6 | . 2 2 1 . . . . . . . 1 . . . . . . . . . . . . . . . Known Exits Taken 8 | . . . . . 1 . . 1 . . . . 1 . 1 . . 1 1 . . . 1 1 . . Unknown Exits Taken 16 | 1 1 1 1 1 . . 1 . 1 1 1 1 . . . 1 1 . . 1 1 1 . . 1 . Scrap Searched 12 | . . 1 . 2 . . . . 3 2 . 1 . . . . . . . . 3 . . . . . Spaces Dug 197 | . 30 10 . 11 34 8 . . . 1 . 8 5 . 8 . . . . 4 . 13 29 18 18 . Terrain Destroyed 546 | . 30 25 . 37 74 27 8 14 . 1 . 8 21 28 19 9 30 5 1 22 40 19 37 21 52 18 Melee 30 | . . . . . . . . . . 1 . 8 5 . 4 . . . . 3 . . 5 . 4 . Projectile 134 | . . . . . . . . 1 . . . . . 3 9 9 3 5 1 19 25 . 16 21 22 . AOE 382 | . 30 25 . 37 74 27 8 13 . . . . 16 25 6 . 27 . . . 15 19 16 . 26 18 Terrain Rammed . | . . . . . . . . . . . . . . . . . . . . . . . . . . . Walls Destroyed . | . . . . . . . . . . . . . . . . . . . . . . . . . . . Machines Disabled . | . . . . . . . . . . . . . . . . . . . . . . . . . . . Actions | -11 -10 -10 -10 -9 -8 -8 -8 -7 -7 -7 -7 -6 -6 -6 -6 -6 -6 -6 -5 -4 -4 -4 -3 -2 -1 -1 --------- Run | Scr Mat Min Exi Min Mat Gar Mat Fac Low Low Dat Pro Fac Gar Fac Ext Cet Arc Fac Fac Upp Upp Res Res Acc Com Total 16699 | 65 755 698 627 311 1830 748 428 1448 612 499 99 401 415 1257 893 704 357 169 345 675 450 61 835 1192 631 194 Wait 1307 | . 39 35 7 . 226 59 32 151 . . 1 8 61 363 21 77 6 1 5 51 25 2 26 78 28 5 Move 13628 | 47 621 638 609 298 1452 596 337 1088 599 490 90 378 337 797 796 456 311 144 310 536 341 53 699 944 501 160 Hop . | . . . . . . . . . . . . . . . . . . . . . . . . . . . Pick Up 135 | 5 17 4 3 3 17 10 4 21 1 1 . . . 8 2 4 4 2 1 4 6 . 7 7 4 . Fast Attach 104 | 6 2 . . . 6 2 2 21 2 . 4 . . 7 1 1 3 . 3 4 10 . 11 12 3 4 Attach 95 | . . 1 . . 9 3 3 16 . . . . . 4 . 3 . . 1 5 10 2 5 15 10 8 Detach 38 | . . . . . 4 . . 9 1 . . . . . . . 2 . . 1 4 1 3 7 6 . Swap 175 | . 8 6 2 3 17 10 2 16 3 3 . 4 6 14 24 17 9 5 4 7 2 . 8 3 2 . Drop 175 | . 7 1 6 3 25 12 3 35 2 1 4 . 1 13 7 8 8 5 6 3 6 . 9 10 . . Fire 835 | 7 61 13 . 4 69 32 44 87 4 3 . 3 4 33 36 54 14 12 15 58 46 3 47 113 69 4 Melee 63 | . . . . . . . . . . 1 . 8 6 2 5 . . . . 3 . . 20 . 5 13 Ram 2 | . . . . . . . . . . . . . . . . . . . . . . . . . 2 . Kick . | . . . . . . . . . . . . . . . . . . . . . . . . . . . Crush 14 | . . . . . 5 . 1 . . . . . . . 1 . . . . 3 . . . 3 1 . Escape Stasis 50 | . . . . . . 24 . 4 . . . . . 16 . 6 . . . . . . . . . . Rewire 78 | . . . . . . . . . . . . . . . . 78 . . . . . . . . . . Trap . | . . . . . . . . . . . . . . . . . . . . . . . . . . . Miscellaneous . | . . . . . . . . . . . . . . . . . . . . . . . . . . . Route ------- -11/Scrapyard -10/Materials (discovered 4 exits: [*Mat x3] / *Min) -10/Mines (discovered 3 exits: [*Mat x2] / *Exi) -10/Exiles -9/Mines -8/Materials (discovered 4 exits: *Fac x2 / *Sto / Gar) -8/Garrison (discovered 2 exits: *Mat x2) -8/Materials (discovered 3 exits: *Fac / Sto x2) -7/Factory (discovered 3 exits: *Fac / *Low x2) -7/Lower Caves -7/Lower Caves -7/Data Miner -6/Proximity Caves -6/Factory (discovered 4 exits: Fac x3 / Gar) -6/Garrison (discovered 3 exits: *Fac x3) -6/Factory (discovered 4 exits: Low x2 / *Ext x2) -6/Extension (discovered 2 exits: *Fac / *Cet) -6/Cetus -6/Archives (discovered 3 exits: *Fac / [*Hub x2]) -5/Factory (discovered 6 exits: *Fac x4 / Upp x2) -4/Factory -4/Upper Caves -4/Upper Caves -3/Research (discovered 2 exits: *Res x2) -2/Research (discovered 3 exits: *Acc x3) -1/Access -1/Command History --------- Turn | Location | Event 43 | -11/Scrapyard | Discovered new exit (range 15) 76 | -11/Scrapyard | Entered Materials 216 | -10/Materials | Discovered new exit (range 10) 309 | -10/Materials | Build established: Mutant 358 | -10/Materials | Repaired Hcp. Storage Unit 371 | -10/Materials | Discovered new exit (range 13) 429 | -10/Materials | Discovered new exit (range 17) 429 | -10/Materials | Central database locked down 640 | -10/Materials | Discovered new exit (range 4) 935 | -10/Materials | Entered Mines 1013 | -10/Mines | Assisted by bots powering up and referring to "LRC-V3" 1095 | -10/Mines | Found the Drone Emporium 1099 | -10/Mines | Found Prototype Device 1144 | -10/Mines | Discovered new exit (range 9) 1217 | -10/Mines | Learned location of Storage (-8) 1522 | -10/Mines | Discovered new exit (range 8) 1523 | -10/Mines | Core integrity fell below 50% 1554 | -10/Mines | Met a Derelict testing a Signal Generator 1563 | -10/Mines | Found Signal Generator 1667 | -10/Mines | Deemed a non-threat by the Exiles lab entrance 1667 | -10/Mines | Discovered new exit (range 5) 1701 | -10/Mines | Entered Exiles 1701 | -10/Exiles | Accompanied by 5 allies 1731 | -10/Exiles | Led the pair of lost Derelicts to a safe place 1731 | -10/Exiles | Met 8R-AWN 1751 | -10/Exiles | Met EX-HEX 1796 | -10/Exiles | Met EX-DEC 1805 | -10/Exiles | Learned location of Zion (-6) 1827 | -10/Exiles | Met EX-BIN 1848 | -10/Exiles | Aligned with FarCom system 1849 | -10/Exiles | Given EX-Vault access code 1875 | -10/Exiles | Opened EX-Vault 1883 | -10/Exiles | Found XL Autogun Array 1908 | -10/Exiles | Warned to stay clear of 0b10 Research branches 2082 | -10/Exiles | Discovered new exit (range 11) 2418 | -10/Exiles | Left Exiles lab with XL Autogun Array 2418 | -10/Exiles | Entered Mines 2418 | -9/Mines | Accompanied by 3 allies 2693 | -9/Mines | Assembled infested the area 2749 | -9/Mines | Discovered new exit (range 6) 2777 | -9/Mines | Entered Materials 2777 | -8/Materials | Accompanied by 2 allies 2777 | -8/Materials | Evolved 4 slots: Propulsion x1, Utility x2, Weapon x1 2795 | -8/Materials | Discovered new exit (range 11) 3094 | -8/Materials | Discovered new exit (range 9) 3099 | -8/Materials | Build established: Scavenger-Skirmisher 3599 | -8/Materials | Discovered new exit (range 10) 4311 | -8/Materials | Build established: Skirmisher 4455 | -8/Materials | Identified exit to Garrison 4986 | -8/Materials | Entered Garrison 5056 | -8/Garrison | Triggered checkpoint 5079 | -8/Garrison | Triggered checkpoint 5105 | -8/Garrison | Destroyed 8 combat bots 5130 | -8/Garrison | Discovered new exit (range 19) 5331 | -8/Garrison | Discovered new exit (range 14) 5353 | -8/Garrison | Installed Relay Interface Framework 5393 | -8/Garrison | Triggered checkpoint 5426 | -8/Garrison | Garrison Relay disabled 5582 | -8/Garrison | Triggered checkpoint 5664 | -8/Garrison | Triggered checkpoint 5693 | -8/Garrison | Garrison Relay disabled 5901 | -8/Garrison | Entered Materials 5951 | -8/Materials | Build established: Mutant 6045 | -8/Materials | Garrison activated, responded to threat 6177 | -8/Materials | Identified exit to Storage 6423 | -8/Materials | Discovered new exit (range 16) 6514 | -8/Materials | Build established: Scavenger-Skirmisher 6539 | -8/Materials | Entered Factory 6539 | -7/Factory | Evolved 2 slots: Utility x1, Weapon x1 7084 | -7/Factory | Lost 5 parts (3n1u1w) 7130 | -7/Factory | Lost 5 parts (1p1n1u2w) 7132 | -7/Factory | Destroyed 10 combat bots 7428 | -7/Factory | Garrison activated, responded to threat 7592 | -7/Factory | Build established: Scavenger-Mutant 7911 | -7/Factory | Build established: Bothacker-Tank 8374 | -7/Factory | Discovered new exit (range 6) 8429 | -7/Factory | Repaired Lrn. Tractor Beam 8698 | -7/Factory | Discovered new exit (range 9) 8973 | -7/Factory | Discovered new exit (range 20) 9156 | -7/Factory | Identified exit to Lower Caves 9206 | -7/Factory | Entered Lower Caves 9213 | -7/Lower Caves | Learned location of 1 exit from Factory 10197 | -7/Lower Caves | Discovered new exit (range 3) 10698 | -7/Lower Caves | Entered another Lower Caves area 11162 | -7/Lower Caves | Encountered a Warlord checkpoint 11579 | -7/Lower Caves | Discovered new exit (range 15) 11917 | -7/Lower Caves | Entered Data Miner 11919 | -7/Data Miner | Discovered new exit (range 6) 11941 | -7/Data Miner | Met Data Miner 11973 | -7/Data Miner | Learned location of Section 7 (-3) 11998 | -7/Data Miner | Received God Mode back door access code from Data Miner 12064 | -7/Data Miner | Entered Proximity Caves 12094 | -6/Proximity Caves | Learned 4 Factory zone layouts 12228 | -6/Proximity Caves | Escorted by Enhanced Grunt 12988 | -6/Proximity Caves | Discovered new exit (range 9) 13010 | -6/Proximity Caves | Learned Factory emergency access door positions 13037 | -6/Proximity Caves | Entered Factory 13037 | -6/Factory | Evolved 2 slots: Utility x2 13038 | -6/Factory | Identified exit to Factory 13471 | -6/Factory | Incoming investigation squad redirected 13564 | -6/Factory | Build established: Bothacker-Mutant 13959 | -6/Factory | Identified exit to Garrison 13959 | -6/Factory | Entered Garrison 14014 | -6/Garrison | Triggered checkpoint 14892 | -6/Garrison | Garrison Relay disabled 14986 | -6/Garrison | Triggered checkpoint 15364 | -6/Garrison | Build established: Bothacker-Tank 15447 | -6/Garrison | Discovered new exit (range 11) 15557 | -6/Garrison | Triggered checkpoint 15655 | -6/Garrison | Discovered new exit (range 10) 15774 | -6/Garrison | Triggered checkpoint 15891 | -6/Garrison | Discovered new exit (range 19) 15950 | -6/Garrison | Expanded RIF knowledge: Signal Jamming 16441 | -6/Garrison | Entered Factory 17632 | -6/Factory | Identified exit to Lower Caves 17632 | -6/Factory | Identified exit to Extension 17825 | -6/Factory | Build established: Bothacker-Skirmisher 18336 | -6/Factory | Build established: Bothacker-Mutant 18429 | -6/Factory | Entered Extension 18653 | -6/Extension | Rescued A7 18723 | -6/Extension | Rescued a captive Derelict 18776 | -6/Extension | Rescued a captive Derelict 19069 | -6/Extension | Spotted B-75 Beast 19100 | -6/Extension | Spotted B-75 Beast 19106 | -6/Extension | Destroyed B-75 Beast 19120 | -6/Extension | Destroyed B-75 Beast 19154 | -6/Extension | Disrupted transfer network 19393 | -6/Extension | Rescued a captive Derelict 19438 | -6/Extension | Rescued a captive Derelict 19439 | -6/Extension | Rescued a captive Derelict 19505 | -6/Extension | Allied Derelicts emerged from ambush trap array 19653 | -6/Extension | Discovered exit to Factory (range 10) 19654 | -6/Extension | Discovered new exit (range 6) 19695 | -6/Extension | Entered Cetus 19695 | -6/Cetus | Accompanied by 17 allies (A7) 19700 | -6/Cetus | Acquired a Cetus Manufacturing Module code from A7 19715 | -6/Cetus | Spotted Cetus Guard 19715 | -6/Cetus | Spotted Cetus Guard 19717 | -6/Cetus | Spotted Cetus Guard 19725 | -6/Cetus | Spotted Cetus Guard 19730 | -6/Cetus | Allies destroyed Cetus Guard 19733 | -6/Cetus | Allies destroyed Cetus Guard 19739 | -6/Cetus | Allies destroyed Cetus Guard 19743 | -6/Cetus | Allies destroyed Cetus Guard 19792 | -6/Cetus | Cetus Manufacturing Module disabled 19959 | -6/Cetus | Failed to start Cetus Manufacturing Module 20045 | -6/Cetus | Discovered new exit (range 15) 20053 | -6/Cetus | Build established: Bothacker-Tank 20267 | -6/Cetus | Entered Archives 20267 | -6/Archives | Accompanied by 5 allies (A7) 20359 | -6/Archives | Discovered exit to Factory (range 16) 20379 | -6/Archives | Unable to access archive contents 20473 | -6/Archives | Discovered new exit (range 16) 20493 | -6/Archives | Discovered new exit (range 16) 20544 | -6/Archives | Entered Factory 20544 | -5/Factory | Evolved 2 slots: Propulsion x1, Utility x1 20810 | -5/Factory | Identified exit to Upper Caves 20850 | -5/Factory | Identified exit to Factory 21109 | -5/Factory | Entered another Factory area 21109 | -4/Factory | Evolved 2 slots: Utility x2 21600 | -4/Factory | Build established: Scavenger-Tank 21868 | -4/Factory | Repaired Lyr. Heavy Armor Plating 22207 | -4/Factory | Discovered new exit (range 14) 22226 | -4/Factory | System corruption reached 10% 22250 | -4/Factory | Entered Upper Caves 22252 | -4/Upper Caves | Attracted the attention of an 0b10 checkpoint 22302 | -4/Upper Caves | Lost 4 parts (3u1w) 22440 | -4/Upper Caves | Attracted the attention of an 0b10 outpost 22559 | -4/Upper Caves | Lost 12 parts (3n5u4w) 22774 | -4/Upper Caves | Ambushed by wild Derelicts 22923 | -4/Upper Caves | Learned 8 Research zone layouts 23018 | -4/Upper Caves | Discovered new exit (range 6) 23067 | -4/Upper Caves | Entered another Upper Caves area 23087 | -4/Upper Caves | Build established: Scavenger-Mutant 23106 | -4/Upper Caves | Identified Splice Drone Bay 23181 | -4/Upper Caves | Discovered new exit (range 15) 23217 | -4/Upper Caves | Entered Research 23217 | -3/Research | Evolved 2 slots: Utility x2 23218 | -3/Research | Identified exit to Research 23518 | -3/Research | Build established: Scavenger-Skirmisher 23969 | -3/Research | Build established: Scavenger-Mutant 23981 | -3/Research | System corruption reached 10% 24180 | -3/Research | Found Exp. Transmission Jammer 24560 | -3/Research | Found Gamma Bomb Array 24788 | -3/Research | Discovered exit to Research (range 3) 24793 | -3/Research | Entered another Research area 24793 | -2/Research | Evolved 2 slots: Utility x2 24964 | -2/Research | Incoming investigation squad redirected 24988 | -2/Research | Spotted B-90 Cyclops 25490 | -2/Research | Build established: Scavenger-Skirmisher 25568 | -2/Research | Spotted B-90 Cyclops 25804 | -2/Research | Lost 3 parts (1p2u) 26001 | -2/Research | Identified exit to Access 26030 | -2/Research | Build established: Scavenger-Tank 26148 | -2/Research | Garrison activated, responded to threat 26263 | -2/Research | System corruption reached 10% 26501 | -2/Research | Spotted B-90 Cyclops 26605 | -2/Research | Entered Access 26605 | -1/Access | Accompanied by 1 ally 26605 | -1/Access | Evolved 2 slots: Propulsion x2 26641 | -1/Access | Build established: Scavenger-Mutant 27065 | -1/Access | Crushed by falling debris 27096 | -1/Access | Lost 3 parts (3u) 27097 | -1/Access | System corruption reached 10% 27235 | -1/Access | Incoming investigation squad redirected 27339 | -1/Access | Build established: Scavenger-Tank 27466 | -1/Access | Lost 6 parts (1n2u3w) 27540 | -1/Access | Lost 3 parts (1n1u1w) 27555 | -1/Access | Discovered new exit (range 7) 27566 | -1/Access | Entered Command 27685 | -1/Command | System corruption reached 30% 27730 | -1/Command | Core integrity fell below 50% 27739 | -1/Command | Released all parts (7) 27760 | -1/Command | Lost 12 parts (1p3n4u4w) 27767 | -1/Command | Core integrity fell below 20% 27784 | -1/Command | Spotted B-99 Colossus 27785 | -1/Command | Destroyed by B-99 Colossus with Multirail Last Messages --------------- 27739_ Released Imp. Heavy Treads. 27740_ Acquired 70 matter. 27740_ P-80 Master resets S-43 Plague, system corruption cleaned. 27749_ System corrupted: Substantial component data lost. 27749_ Connecting with Terminal... 27749_ Current location identified: Command 27754_ Penetrated by Slug. 27754_ Slug penetrates Wall. 27757_ Penetrated by Slug. 27764_ System corrupted: Heat flow error (+221). 27774_ Acquired 24 matter. 27776_ Acquired 86 matter. 27777_ Acquired 16 matter. 27777_ Critical hit (Burn: +37). 27778_ W-44 Eye sends out distress signal. 27781_ MHBXZO36XYSXLC< L94PJPQCSCAK9C 27782_ K-01 Serf destroyed. 27785_ Penetrated by Slug. 27785_ Slug penetrates Wall. 27785_ Penetrated by Slug. Map ----- +----------------------------------------------------+ | ?????????????????????????????????????????????????? | | ?????????????????????????????????????????????????? | | ?????????????????????????????????????????????????? | | ?????????????????????????????????????????????????? | | ?????????????????????????????????????????????????? | | ?????????????????????????????????????????????????? | | ?????????????????????????????????????????????????? | | ?????????????????????????????????????????????????? | | ?????????????????????????????????????????????????? | | ?????????????????????????????????????????????????? | | ?????????????????????????????????????????????????? | | ?????????????????????????????????????????????????? | | ???????????????????# ??????????#?????????????????? | | ???????????????????#k##+##+#??BB?????????????????? | | ???????????????????# ###B??????????????????? | | ???????????????????+ ????????##########? | | ???????????????????# ?????????# #? | | ?????????????####### ?????????# #? | | ?????????????+ !=! ??????????# #? | | ?????????????# ==! ????????# #? | | ??????????????? ==! ??????# #? | | ????????????????? ##### """" #? | | ??????????????????? h """" #? | | ????????????????????? ######## """" #? | | ??????????????????????? #????????????# """" #? | | ????????????????????????#@#??########### #? | | ????????????????????????#%#??# + #? | | ?????????????? ?#######+#### # !! #? | | ????????????? g # #"""" # !! #? | | ??????????? g /gg !% #"""" # #? | | ???????????!] # g #"""" # #? | | ??????????????????# "" #"""" # #? | | ??????????????????#"""" # # #? | | ??????????????????#"""" w # * # #? | | ??????????????????# "" #" ! #######+##### | | ??????????????????# !s ==% p | | ??????????????????# | | ??????????????????# "" "" #######+##### | | ??????????????????#"""" "" ## #?? | | ??????????????????#"""" # g g ## #?? | | ??????????????????# "" !#"gg ## ""#?# | | ??????????????????# ## ## ""#?# | | ??????????????????# ## ## ""#?# | | ??????????????????############# ! ## T#?# | | ??????????????????????????????# ## !="#?# | | ??????????????????????????????# ## !]""#?# | | ??????????????????????????????# ##* *!"#?# | | ??????????????????????????????##/#####+##%= = !#?# | | ??????????????????????????????? #???# ##= ! #?# | | ??????????????????????????????? #???# + #?# | +----------------------------------------------------+ Best States ------------- Heat Dissipation 106 Coolant Potential 100 Energy Generation 21 Energy Capacity 325 Matter Stores 388 Matter Capacity 550 Sight Range 22 Terrain Scan Density 10 Jamming Range 22 Additional Mass Support 9 Armor Coverage 2100 Core Shielding 40 Reclamation Efficiency 20 Phase Shifting 5 Evasion (%) 50 Armor Integrity Analysis 40 Recoil Reduction 6 Relay Coupler Types 44 Relay Coupler Value 2 Item Schematics ----------------- Lrn. Tractor Beam | -8/Materials | Scanalyzed Exp. Sensor Array | -7/Data Miner | Free Combat Drone Bay | -7/Data Miner | Free Lgt. Regenerative Plating | -7/Data Miner | Free Exp. Flexi-carbon Leg | -7/Data Miner | Free Exp. Terrain Scan Processor | -7/Data Miner | Free Tactical Coordination Suite | -7/Data Miner | Free Exp. Transmission Jammer | -7/Data Miner | Free Cloaking Device | -7/Data Miner | Free Kinetic Spear | -7/Data Miner | Free Robot Schematics ------------------ S-27 Virus | -7/Data Miner | Free G-50 Soldier | -7/Data Miner | Free G-67 Veteran | -7/Data Miner | Free P-70 Sage | -7/Data Miner | Free I-36 Angel | -7/Data Miner | Free Fabricated ------------ Nothing Alien Tech Used ----------------- None Achievements -------------- Factory Defaults Project G-00 Turtlemind Challenges ------------ None Game ------ Seed InsulatedActuatorScythe Manual? 0 Play Time 04:55:13 Cumulative 98.9 hours Start 2021.05.05 @ 19:26:13 End 2021.05.11 @ 17:27:38 Sessions 8 Manual Loads 0 Difficulty Rogue Special Mode None Game No. 68 Rogue 47 Adventurer 13 Explorer 8 Win Type - Total 3 Types 2/0/1/0/0/0/0/0/0 Lore% 72 Gallery% 71 Achievement% 53 Wizard Run 0 Options --------- ASCII 0 Keyboard 0 Movement Numpad Keybinds 0 Fullscreen 2 Font 18/SmallcapsGlow Map View 76x50 Tactical HUD 1 Map Filters NONE Filters NONE Steam 1 RUN: 8f6de32d-2d99-493b-b7a1-71bbcf9ec2b6